bitfinex-derivatives/quotes_SOLF0:USTF0_20260108
["timestamp","ask_amount","ask_price","bid_price","bid_amount"]
[1767905347050,2.27777783,137.44,137.38,6.5577]
[1767905347748,2.27777783,137.44,137.34,198.97420125]
[1767905347749,2.27777783,137.44,137.35,111.11669793]
[1767905347954,0.46667451,137.44,137.36,103.83030332]
[1767905348356,0.46667451,137.44,137.39,6.5571]
[1767905349355,0.46667451,137.41,137.32,9.08859793]
[1767905349544,2.27777783,137.4,137.31,198.99720125]
[1767905349750,0.46667451,137.39,137.31,10.89970125]
[1767905349955,0.46667451,137.39,137.29,102.0752]
[1767905349956,0.46667451,137.39,137.29,95.12859793]
[1767905350147,1.81110332,137.38,137.29,86.04]
[1767905350542,1.81110332,137.38,137.32,6.5604]
[1767905351855,0.05256652,137.36,137.32,6.5604]
[1767905352359,0.46667451,137.39,137.32,6.5604]
[1767905352550,0.46667451,137.39,137.33,0.04932683]
[1767905352950,0.46667451,137.39,137.33,6.60922683]
[1767905359963,6.5563,137.41,137.33,6.60922683]
[1767905359964,2.27777783,137.44,137.34,103.84900332]
[1767905360164,2.27777783,137.44,137.34,198.99760125]
[1767905360670,0.46667451,137.43,137.36,6.5582]
[1767905360868,0.46667451,137.43,137.38,0.04821056]
[1767905361063,8.83367783,137.42,137.35,6.5591]
[1767905362768,0.46667451,137.41,137.35,6.5591]
[1767905363360,6.5563,137.41,137.32,86.06]
[1767905363564,0.46667451,137.4,137.32,86.06]
[1767905364366,2.27777783,137.4,137.32,86.06]
[1767905364667,2.27777783,137.4,137.34,6.5595]
[1767905364977,2.27777783,137.4,137.32,86.06]
[1767905364978,0.46667451,137.39,137.32,86.06]
[1767905365268,0.46667451,137.39,137.32,6.5601]
[1767905365662,86.06,137.41,137.3,103.87760332]
[1767905365663,88.33777783,137.41,137.3,103.87760332]
[1767905365859,2.27777783,137.41,137.3,112.96620125]
[1767905366266,2.27777783,137.43,137.32,103.86320332]
[1767905366668,0.46667451,137.43,137.34,1.81110332]
[1767905366873,0.46667451,137.43,137.37,6.558]
[1767905368278,7.02197451,137.43,137.35,6.5587]
[1767905368471,7.02197451,137.43,137.33,103.85400332]
[1767905369074,0.46667451,137.42,137.32,111.14069793]
[1767905369277,0.46667451,137.41,137.34,6.5593]
[1767905370469,0.46667451,137.41,137.35,6.5589]
[1767905370874,0.46667451,137.4,137.33,6.5596]
[1767905371077,2.27777783,137.4,137.31,1.81110332]
[1767905371782,2.27777783,137.4,137.34,6.5595]
[1767905371983,2.27777783,137.4,137.31,103.86830332]
[1767905372280,2.27777783,137.4,137.31,112.95690125]
[1767905372485,2.27777783,137.4,137.31,103.86830332]
[1767905372686,2.27777783,137.4,137.34,6.5591]
[1767905372987,0.46667451,137.4,137.32,9.08859793]
[1767905373185,0.46667451,137.4,137.35,6.5591]
[1767905376990,0.46667451,137.4,137.36,6.5586]
[1767905377386,1.81110332,137.42,137.36,6.5586]
[1767905377892,2.24584121,137.42,137.36,6.5586]
[1767905378290,8.80164121,137.42,137.36,6.5586]
[1767905378795,2.24584121,137.42,137.36,6.5586]
[1767905382502,0.43473789,137.42,137.36,6.5586]
[1767905384704,6.5566,137.41,137.35,6.5591]
[1767905385096,0.43473789,137.42,137.35,6.5591]
[1767905386710,6.99053789,137.42,137.35,6.5591]
[1767905387903,6.99053789,137.42,137.36,6.5586]
[1767905388112,0.43473789,137.45,137.35,102.0309]
[1767905388405,0.43473789,137.45,137.39,6.5571]
[1767905389708,0.43473789,137.45,137.4,6.5567]
[1767905391410,0.43473789,137.45,137.37,9.08859793]
[1767905391605,0.43473789,137.44,137.35,9.08859793]
[1767905391805,0.43473789,137.43,137.34,9.08859793]
[1767905392108,0.43473789,137.43,137.35,9.08859793]
[1767905392811,6.99013789,137.43,137.36,6.5585]
[1767905397614,86.06,137.44,137.35,9.08859793]
[1767905397615,6.99053789,137.42,137.35,15.64769793]
[1767905397918,6.99053789,137.42,137.35,6.5591]
[1767905397919,0.43473789,137.41,137.35,6.5591]
[1767905398820,0.43473789,137.4,137.33,101.70819793]
[1767905399222,0.43473789,137.4,137.34,9.08859793]
[1767905399820,0.43473789,137.4,137.34,15.64799793]
[1767905400314,0.43473789,137.4,137.31,102.0578]
[1767905400315,0.43473789,137.37,137.28,9.08859793]
[1767905400513,0.43473789,137.37,137.26,13.63289689]
[1767905400514,0.43473789,137.36,137.26,9.08859793]
[1767905400714,0.43473789,137.36,137.24,9.08859793]
[1767905400915,0.43473789,137.34,137.24,9.08859793]
[1767905401117,0.43473789,137.34,137.24,111.19879793]
[1767905401320,6.99443789,137.34,137.24,9.08859793]
[1767905401519,6.99443789,137.34,137.23,111.20439793]
[1767905402124,0.43473789,137.32,137.2,104.97033222]
[1767905402422,0.39286969,137.31,137.21,102.1343]
[1767905402617,0.39286969,137.31,137.24,6.5643]
[1767905403916,0.39286969,137.31,137.25,6.5638]
[1767905404118,86.06,137.32,137.25,6.5638]
[1767905404820,86.06,137.32,137.21,102.1343]
[1767905404821,0.39286969,137.31,137.23,6.5645]
[1767905405015,0.39286969,137.31,137.18,102.1549]
[1767905405429,6.95446969,137.3,137.19,102.1496]
[1767905405724,0.39286969,137.3,137.2,102.1415]
[1767905407328,0.37624285,137.29,137.17,88.89013222]
[1767905407522,0.37624285,137.29,137.17,191.05193222]
[1767905407826,0.37624285,137.29,137.17,191.07193222]
[1767905408024,3.20637507,137.29,137.17,188.2418]
[1767905408326,0.37624285,137.27,137.18,6.5669]
[1767905408526,0.37624285,137.27,137.17,102.1618]
[1767905409020,6.93934285,137.27,137.19,6.5666]
[1767905409222,0.37624285,137.27,137.19,6.5666]
[1767905410331,0.37624285,137.28,137.2,6.5662]
[1767905410832,6.93884285,137.28,137.18,6.5669]
[1767905411032,0.37624285,137.27,137.17,102.1616]
[1767905411536,0.37624285,137.26,137.16,86.08]
[1767905412330,0.37624285,137.26,137.18,6.5671]
[1767905412928,0.37624285,137.28,137.2,6.5661]
[1767905413126,0.37624285,137.28,137.18,102.1529]
[1767905413635,6.93884285,137.28,137.19,6.5664]
[1767905414125,6.93884285,137.28,137.2,6.5662]
[1767905414917,0.37624285,137.26,137.18,6.5669]
[1767905416619,6.93974285,137.26,137.18,6.5669]
[1767905418133,9.76927507,137.28,137.19,6.5667]
[1767905418333,6.93914285,137.28,137.17,102.1629]
[1767905418827,0.37624285,137.28,137.17,102.1629]
[1767905419020,0.37624285,137.28,137.21,6.5654]
[1767905419531,0.37624285,137.28,137.21,0.05083162]
[1767905420528,6.5635,137.26,137.21,0.05083162]
[1767905420733,6.93974285,137.26,137.21,0.05083162]
[1767905420933,0.37624285,137.25,137.21,0.05083162]
[1767905421536,6.94024285,137.25,137.21,0.05083162]
[1767905422234,6.93954285,137.27,137.21,0.05083162]
[1767905422437,86.51624285,137.29,137.21,0.05083162]
[1767905423639,93.07864285,137.29,137.21,6.61653162]
[1767905423939,93.07864285,137.29,137.21,0.05083162]
[1767905425537,93.07864285,137.29,137.22,6.5653]
[1767905426435,93.07864285,137.29,137.24,0.04646756]
[1767905427736,86.51624285,137.29,137.24,0.04646756]
[1767905427931,6.5613,137.31,137.24,0.04646756]
[1767905428130,6.93754285,137.31,137.24,0.04646756]
[1767905428736,0.37624285,137.29,137.24,0.04646756]
[1767905429244,0.37624285,137.29,137.19,102.1466]
[1767905429648,0.37624285,137.29,137.25,0.05205195]
[1767905430550,6.93834285,137.29,137.25,0.05205195]
[1767905433436,0.37130249,137.28,137.25,0.05205195]
[1767905434545,0.37130249,137.3,137.25,0.05205195]
[1767905434754,2.83013222,137.32,137.25,0.05205195]
[1767905434755,0.37130249,137.32,137.25,0.05205195]
[1767905435743,0.37130249,137.32,137.26,6.5634]
[1767905436537,0.37130249,137.31,137.25,0.05205195]
[1767905437038,6.93230249,137.31,137.25,0.05205195]
[1767905437741,86.14,137.33,137.25,6.61565195]
[1767905437742,86.51130249,137.33,137.25,6.61565195]
[1767905437937,86.51130249,137.33,137.25,0.05205195]
[1767905438242,0.37130249,137.32,137.25,0.05205195]
[1767905439651,6.93190249,137.32,137.26,6.5634]
[1767905440349,0.37130249,137.31,137.25,6.61595195]
[1767905441759,6.93240249,137.31,137.25,6.61595195]
[1767905441955,0.37130249,137.3,137.25,6.61595195]
[1767905442155,0.37130249,137.28,137.19,102.1466]
[1767905443556,0.37130249,137.28,137.22,6.5653]
[1767905445559,0.05257091,137.26,137.22,6.5653]
[1767905445777,0.05257091,137.26,137.23,6.5647]
[1767905446877,0.37130249,137.3,137.24,6.5642]
[1767905447161,102.0018,137.39,137.24,1.81486967]
[1767905447162,86.51130249,137.32,137.24,1.81486967]
[1767905447364,0.37130249,137.32,137.24,1.81486967]
[1767905448162,0.37130249,137.32,137.27,0.04840791]
[1767905448564,0.37130249,137.32,137.27,6.61130791]
[1767905448761,86.14,137.34,137.27,6.61130791]
[1767905448961,2.18617216,137.38,137.27,0.04840791]
[1767905449156,2.18617216,137.38,137.28,1.81486967]
[1767905449366,88.30617216,137.38,137.28,1.81486967]
[1767905449562,0.37130249,137.37,137.32,0.05512767]
[1767905449772,101.9746,137.43,137.32,0.05512767]
[1767905449773,86.12,137.39,137.32,0.05512767]
[1767905449971,86.49130249,137.39,137.32,0.05512767]
[1767905450374,86.49130249,137.39,137.3,1.81486967]
[1767905450869,0.37130249,137.38,137.3,6.5611]
[1767905451268,0.37130249,137.37,137.27,1.81486967]
[1767905451469,0.37130249,137.37,137.29,6.5616]
[1767905452364,0.37130249,137.37,137.3,6.5614]
[1767905456365,101.9924,137.41,137.3,6.5614]
[1767905456366,6.92840249,137.4,137.3,102.0675]
[1767905456573,8.74327216,137.4,137.3,102.0675]
[1767905456871,0.37130249,137.39,137.3,102.0675]
[1767905457572,0.37130249,137.39,137.33,6.5599]
[1767905458268,0.37130249,137.39,137.31,6.5606]
[1767905458569,0.37130249,137.39,137.29,103.88996967]
[1767905459670,0.37130249,137.39,137.32,6.5604]
[1767905460267,0.37130249,137.39,137.33,6.56]
[1767905461070,6.92860249,137.39,137.31,6.5606]
[1767905461270,0.37130249,137.37,137.31,6.5606]
[1767905462775,2.18029295,137.4,137.3,103.87826967]
[1767905463474,2.18029295,137.4,137.34,6.5595]
[1767905465176,0.36542328,137.39,137.32,6.5602]
[1767905465381,0.36542328,137.39,137.3,102.0634]
[1767905465973,1.81486967,137.38,137.3,102.0634]
[1767905466573,1.81486967,137.38,137.33,6.5599]
[1767905466773,0.04725867,137.35,137.33,6.5599]
[1767905467474,2.18029295,137.39,137.33,6.61505813]
[1767905469878,0.34318141,137.38,137.33,0.05515813]
[1767905470071,0.34318141,137.36,137.28,86.1]
[1767905470478,0.34318141,137.36,137.26,103.91006967]
[1767905470679,0.34318141,137.36,137.29,6.562]
[1767905471483,6.90198141,137.36,137.3,6.5615]
[1767905471677,0.04605283,137.34,137.3,6.5615]
[1767905472678,0.04605283,137.34,137.28,102.0803]
[1767905472885,1.81486967,137.39,137.3,1.81486967]
[1767905473182,2.15805108,137.39,137.29,0.0519744]
[1767905473681,2.15805108,137.39,137.28,189.97516967]
[1767905474183,2.15805108,137.39,137.32,0.05468313]
[1767905474376,0.34318141,137.38,137.32,0.05468313]
[1767905474682,6.90088141,137.38,137.32,0.05468313]
[1767905476380,0.34318141,137.36,137.32,0.05468313]
[1767905476782,0.34318141,137.34,137.29,6.5616]
[1767905476985,0.34318141,137.34,137.25,1.81486967]
[1767905477776,0.34318141,137.34,137.28,6.5624]
[1767905478079,0.05525582,137.31,137.28,6.5624]
[1767905487782,0.34318141,137.41,137.29,1.46]
[1767905487987,0.34318141,137.41,137.32,1.81486967]
[1767905488182,0.34318141,137.43,137.34,1.81486967]
[1767905488487,0.34318141,137.43,137.31,188.1574]
[1767905488488,0.34318141,137.41,137.31,86.1]
[1767905488687,0.34318141,137.41,137.32,1.81486967]
[1767905489091,0.34318141,137.41,137.35,6.61462575]
[1767905490096,6.89948141,137.41,137.35,0.05582575]
[1767905493403,0.34318141,137.41,137.35,0.05582575]
[1767905493888,0.34318141,137.41,137.35,6.61492575]
[1767905494491,6.89958141,137.41,137.35,0.05582575]
[1767905494697,0.38939797,137.39,137.29,1.81486967]
[1767905495097,0.34154376,137.39,137.29,1.81486967]
[1767905495397,6.89874376,137.39,137.32,6.5605]
[1767905495988,0.05143119,137.37,137.32,6.5605]
[1767905500895,0.39297495,137.37,137.3,6.5611]
[1767905501101,0.39297495,137.37,137.28,189.97526967]
[1767905501303,0.34154376,137.37,137.28,189.97526967]
[1767905501600,6.5579,137.38,137.32,6.5605]
[1767905506600,0.34154376,137.4,137.31,0.05313695]
[1767905507102,0.34154376,137.4,137.29,9.08859793]
[1767905507504,6.558,137.38,137.34,0.05383375]
[1767905507707,0.34154376,137.4,137.34,0.05383375]
[1767905508604,6.89864376,137.4,137.34,0.05383375]
[1767905509004,0.34154376,137.39,137.34,0.05383375]
[1767905509409,6.5578,137.38,137.34,0.05383375]
[1767905510406,6.89934376,137.38,137.32,6.5605]
[1767905510606,0.05025,137.37,137.32,6.5605]
[1767905512005,0.34154376,137.4,137.31,9.08859793]
[1767905512209,0.34154376,137.4,137.33,0.04956733]
[1767905512412,0.34154376,137.4,137.34,6.5594]
[1767905513015,0.34154376,137.4,137.33,6.60956733]
[1767905513016,6.89854376,137.4,137.33,6.60956733]
[1767905513518,86.06,137.43,137.33,0.04956733]
[1767905513818,0.34154376,137.42,137.33,0.04956733]
[1767905514007,0.34154376,137.42,137.32,9.08859793]
[1767905515116,0.34154376,137.41,137.34,6.5592]
[1767905518016,0.34154376,137.41,137.31,111.14429793]
[1767905518017,0.34154376,137.4,137.33,6.56]
[1767905518216,0.34154376,137.4,137.31,9.08859793]
[1767905518418,0.34154376,137.4,137.3,113.9846841]
[1767905519219,6.89834376,137.4,137.3,113.9846841]
[1767905519616,6.89834376,137.4,137.31,9.08859793]
[1767905520715,6.89834376,137.4,137.34,6.5596]
[1767905520918,0.34154376,137.38,137.3,9.08859793]
[1767905521114,0.34154376,137.38,137.29,102.0728]
[1767905521115,0.34154376,137.38,137.29,111.16139793]
[1767905521706,6.5576,137.39,137.32,6.5605]
[1767905522318,6.89914376,137.39,137.32,6.5605]
[1767905530031,6.89914376,137.39,137.33,6.56]
[1767905530331,0.33161815,137.37,137.3,9.08859793]
[1767905530523,0.33161815,137.37,137.29,9.08859793]
[1767905531528,6.88981815,137.37,137.31,6.5609]
[1767905532438,0.33161815,137.37,137.31,6.5609]
[1767905532933,0.33161815,137.37,137.32,6.5605]
[1767905539234,9.72000432,137.4,137.33,6.56]
[1767905540128,6.5574,137.39,137.33,6.56]
[1767905542735,3.16280432,137.42,137.34,6.5596]
[1767905543737,0.33161815,137.42,137.34,6.5596]
[1767905544136,0.33161815,137.46,137.34,102.0386]
[1767905544340,0.33161815,137.46,137.36,102.0228]
[1767905544531,0.33161815,137.46,137.37,102.0144]
[1767905544836,0.33161815,137.48,137.39,102.0014]
[1767905545232,0.33161815,137.48,137.42,6.5557]
[1767905546941,86.39161815,137.51,137.42,101.9788]
[1767905548040,0.33161815,137.53,137.43,101.9709]
[1767905549647,6.88221815,137.53,137.45,6.5542]
[1767905552046,0.33161815,137.51,137.43,6.5549]
[1767905552347,0.33161815,137.51,137.42,101.9788]
[1767905553641,0.33161815,137.51,137.44,6.5547]
[1767905558954,0.33161815,137.51,137.42,101.9788]
[1767905558955,0.33161815,137.51,137.42,6.5554]
[1767905559145,0.31571093,137.5,137.42,6.5554]
[1767905560754,6.86821093,137.49,137.42,6.5554]
[1767905562749,2.12508379,137.51,137.43,6.5552]
[1767905563547,6.552,137.5,137.44,6.5548]
[1767905564756,6.86771093,137.5,137.44,6.5548]
[1767905565356,6.86771093,137.5,137.41,1.80937286]
[1767905566151,6.552,137.5,137.44,6.5548]
[1767905567552,1.80937286,137.51,137.45,6.5541]
[1767905568947,92.86681093,137.52,137.45,6.5541]
[1767905569348,6.86681093,137.52,137.45,6.5541]
[1767905569658,6.86681093,137.52,137.46,6.5538]
[1767905569956,1.80937286,137.53,137.46,6.5538]
[1767905570155,2.12508379,137.53,137.46,6.5538]
[1767905570356,2.12508379,137.53,137.47,6.5533]
[1767905570357,0.31571093,137.53,137.47,6.5533]
[1767905571557,6.86641093,137.53,137.47,6.5533]
[1767905573459,0.31571093,137.53,137.47,6.5533]
[1767905574151,6.86631093,137.53,137.47,6.5533]
[1767905574852,6.86681093,137.52,137.43,189.77797286]
[1767905576560,6.86681093,137.52,137.46,6.5538]
[1767905576758,0.31571093,137.52,137.43,189.77797286]
[1767905577656,0.31571093,137.52,137.46,6.5537]
[1767905581663,0.31571093,137.52,137.47,6.5534]
[1767905582163,0.31571093,137.52,137.48,6.5528]
[1767905582365,8.35947286,137.54,137.45,1.80937286]
[1767905582366,0.31571093,137.54,137.45,1.80937286]
[1767905583566,0.31571093,137.54,137.48,6.5528]
[1767905586966,6.5496,137.55,137.45,1.80937286]
[1767905586967,0.33551615,137.58,137.47,1.80937286]
[1767905587268,0.33551615,137.58,137.49,1.80937286]
[1767905587956,0.33551615,137.58,137.48,86.0]
[1767905588159,0.33551615,137.58,137.48,87.80937286]
[1767905588868,0.30796462,137.55,137.46,1.80937286]
[1767905589071,2.11733748,137.55,137.46,87.78937286]
[1767905589564,8.66703748,137.55,137.46,87.78937286]
[1767905590165,2.11733748,137.55,137.49,6.5524]
[1767905590366,8.35837286,137.57,137.48,1.80937286]
[1767905591169,6.5479,137.59,137.5,1.80937286]
[1767905591373,6.85586462,137.59,137.5,1.80937286]
[1767905591771,6.85586462,137.59,137.52,6.551]
[1767905592375,0.30796462,137.57,137.47,1.80937286]
[1767905592581,0.30796462,137.57,137.48,85.98]
[1767905592870,87.78937286,137.62,137.52,1.80937286]
[1767905593071,0.30796462,137.62,137.52,1.80937286]
[1767905594270,13.55729173,137.63,137.52,1.80937286]
[1767905594464,12.63604213,137.63,137.56,1.80937286]
[1767905594874,12.63604213,137.63,137.57,101.8674]
[1767905595176,12.53232131,137.63,137.58,0.04735515]
[1767905595380,1.2644325,137.63,137.6,6.547]
[1767905595971,1.2644325,137.63,137.58,0.04735515]
[1767905597266,1.2644325,137.63,137.59,6.5476]
[1767905599268,1.2644325,137.63,137.58,86.00735515]
[1767905600172,1.2644325,137.63,137.58,92.55545515]
[1767905600376,1.2644325,137.63,137.58,86.00735515]
[1767905600579,3.25e-05,137.63,137.58,87.46735515]
[1767905600880,3.25e-05,137.63,137.58,86.00735515]
[1767905601282,3.25e-05,137.63,137.58,92.55525515]
[1767905601679,3.25e-05,137.63,137.58,86.00735515]
[1767905602373,6.85426462,137.62,137.51,101.9082]
[1767905602670,6.85426462,137.62,137.5,101.9166]
[1767905602671,0.30796462,137.61,137.52,1.80937286]
[1767905602870,0.30796462,137.61,137.53,85.94]
[1767905603069,0.30796462,137.61,137.54,6.55]
[1767905603781,1.80937286,137.62,137.55,6.5494]
[1767905604283,1.80937286,137.62,137.56,6.549]
[1767905606179,3.25e-05,137.63,137.58,1.80937286]
[1767905606386,3.25e-05,137.63,137.58,1.8634148]
[1767905607678,3.25e-05,137.63,137.6,6.5467]
[1767905608184,3.25e-05,137.63,137.58,0.05404194]
[1767905608478,3.25e-05,137.63,137.59,6.5476]
[1767905609385,3.25e-05,137.63,137.58,1.8634148]
[1767905610288,3.25e-05,137.63,137.61,6.5466]
[1767905613374,6.84657067,137.71,137.64,6.545]
[1767905613576,0.30427067,137.7,137.64,6.545]
[1767905614279,0.30427067,137.7,137.66,0.0526331]
[1767905615893,0.05587072,137.69,137.66,0.0526331]
[1767905619184,0.36014139,137.69,137.66,0.0526331]
[1767905619389,0.36014139,137.69,137.61,94.27557286]
[1767905620084,0.30427067,137.68,137.61,92.4662]
[1767905620395,0.30427067,137.68,137.55,114.9788]
[1767905620396,0.30427067,137.66,137.56,87.70937286]
[1767905620783,0.04607946,137.62,137.56,87.70937286]
[1767905620992,0.04607946,137.62,137.58,6.548]
[1767905629089,0.04607946,137.62,137.56,92.4487]
[1767905630196,6.89665013,137.62,137.56,92.4487]
[1767905630591,0.35035013,137.62,137.56,85.9]
[1767905630897,0.35035013,137.62,137.55,6.5495]
[1767905632591,6.89655013,137.62,137.55,6.5495]
[1767905633994,0.30427067,137.6,137.55,6.5495]
[1767905634197,6.5468,137.61,137.55,6.5495]
[1767905634795,0.04955613,137.59,137.55,6.5495]
[1767905636689,0.04955613,137.59,137.54,85.9]
[1767905637092,0.3538268,137.59,137.53,6.5501]
[1767905637594,0.30427067,137.63,137.54,101.8882]
[1767905637797,0.30427067,137.66,137.55,187.8023]
[1767905638493,0.30427067,137.66,137.55,196.89089793]
[1767905638684,0.30427067,137.66,137.55,110.97089793]
[1767905638890,6.84917067,137.65,137.58,6.5481]
[1767905639400,6.84917067,137.65,137.6,0.04854181]
[1767905640202,6.5453,137.64,137.6,0.04854181]
[1767905642909,6.85924413,137.64,137.6,0.04854181]
[1767905643904,0.31394413,137.62,137.56,92.4687]
[1767905644100,0.31394413,137.67,137.56,88.74016439]
[1767905644402,0.04851211,137.63,137.56,190.61236439]
[1767905644603,0.04851211,137.63,137.56,199.70096232]
[1767905644799,0.04851211,137.63,137.59,6.5476]
[1767905645104,0.04851211,137.63,137.56,85.92]
[1767905646604,0.04851211,137.63,137.58,6.5481]
[1767905648303,0.36245624,137.63,137.58,6.5481]
[1767905648492,0.36245624,137.63,137.57,6.5486]
[1767905649092,0.04851211,137.63,137.56,85.92]
[1767905649602,0.04851211,137.63,137.57,6.5483]
[1767905649802,0.04851211,137.63,137.56,85.92]
[1767905650200,0.04851211,137.63,137.59,6.5476]
[1767905651206,0.36245624,137.63,137.57,6.5482]
[1767905651500,0.36245624,137.63,137.56,85.92]
[1767905651707,0.04851211,137.63,137.56,85.92]
[1767905652692,0.04851211,137.63,137.58,6.5481]
[1767905654010,0.04851211,137.63,137.56,85.92]
[1767905655006,6.89746427,137.63,137.57,6.5486]
[1767905655603,0.35156427,137.63,137.57,6.5486]
[1767905661615,0.35156427,137.63,137.58,6.5481]
[1767905664011,0.35156427,137.63,137.56,95.00859793]
[1767905664514,0.35156427,137.63,137.58,6.5481]
[1767905664903,0.35156427,137.63,137.55,9.08859793]
[1767905665117,0.35156427,137.63,137.54,9.08859793]
[1767905665315,0.30305216,137.63,137.54,9.08859793]
[1767905665614,0.05191223,137.6,137.54,9.08859793]
[1767905666017,0.35496439,137.6,137.54,9.08859793]
[1767905666216,0.35496439,137.6,137.53,9.08859793]
[1767905667617,0.35496439,137.6,137.54,6.5496]
[1767905670219,0.05191223,137.6,137.53,9.08859793]
[1767905670424,0.05191223,137.6,137.54,9.08859793]
[1767905670622,0.05191223,137.6,137.55,9.08859793]
[1767905671128,0.05191223,137.6,137.56,6.549]
[1767905671516,0.05191223,137.6,137.55,9.08859793]
[1767905672721,0.05191223,137.6,137.57,6.5485]
[1767905673422,0.05191223,137.6,137.55,15.63769793]
[1767905673719,0.05191223,137.6,137.54,95.00859793]
[1767905674024,0.35446801,137.6,137.55,6.5495]
[1767905680231,0.35446801,137.6,137.54,95.00859793]
[1767905680232,0.05191223,137.6,137.54,95.00859793]
[1767905680531,0.05191223,137.6,137.55,9.08859793]
[1767905681529,0.05191223,137.6,137.57,6.5486]
[1767905684032,6.84785578,137.64,137.57,6.5486]
[1767905685036,0.30255578,137.66,137.56,110.96399793]
[1767905685235,0.30255578,137.66,137.57,9.08859793]
[1767905686637,6.84705578,137.66,137.59,6.5477]
[1767905687637,0.30255578,137.65,137.59,6.5477]
[1767905687835,0.30255578,137.64,137.57,6.5482]
[1767905688540,6.84795578,137.64,137.57,6.5482]
[1767905690334,0.30255578,137.61,137.53,9.08859793]
[1767905691040,6.84935578,137.61,137.56,0.05592035]
[1767905692241,0.05424447,137.6,137.56,0.05592035]
[1767905700343,0.05424447,137.6,137.53,6.5505]
[1767905700344,0.30255578,137.58,137.53,6.5505]
[1767905700551,2.16153977,137.6,137.51,9.08859793]
[1767905700851,0.30255578,137.62,137.54,10.89333745]
[1767905701449,0.30255578,137.61,137.54,9.08859793]
[1767905701647,0.04654103,137.59,137.54,9.08859793]
[1767905701945,0.04654103,137.59,137.56,6.5491]
[1767905702150,0.30255578,137.65,137.56,1.80473952]
[1767905702352,0.30255578,137.65,137.57,9.08859793]
[1767905703453,6.84745578,137.65,137.6,0.04969708]
[1767905703750,0.32782518,137.64,137.57,6.5483]
[1767905703953,0.05235316,137.62,137.57,6.5483]
[1767905704153,0.05235316,137.62,137.55,101.55779793]
[1767905704954,0.38017834,137.62,137.55,92.4692]
[1767905705150,0.32782518,137.61,137.53,9.08859793]
[1767905705750,0.32782518,137.61,137.54,9.08859793]
[1767905706057,0.05284313,137.58,137.53,6.5503]
[1767905706660,2.1325647,137.65,137.54,1.80473952]
[1767905706955,0.32782518,137.65,137.56,1.80473952]
[1767905707163,0.32782518,137.65,137.56,10.89333745]
[1767905708452,0.32782518,137.65,137.59,0.05304025]
[1767905708655,0.32782518,137.63,137.59,0.05304025]
[1767905708958,0.05409584,137.62,137.55,9.08859793]
[1767905709157,0.05409584,137.62,137.56,6.549]
[1767905710554,0.05409584,137.62,137.57,6.5485]
[1767905711561,0.05409584,137.62,137.57,15.63709793]
[1767905712359,0.05409584,137.62,137.59,6.5475]
[1767905712953,0.05409584,137.62,137.6,6.5471]
[1767905712954,0.00105559,137.62,137.6,6.5471]
[1767905713155,6.8532882,137.67,137.6,8.35183952]
[1767905713756,6.8532882,137.67,137.61,6.5467]
[1767905713961,6.5434,137.69,137.6,1.80473952]
[1767905714156,88.03372772,137.7,137.64,6.5452]
[1767905714157,0.3089882,137.7,137.64,6.5452]
[1767905714361,0.3089882,137.7,137.62,1.80473952]
[1767905714962,1.80473952,137.72,137.62,1.80473952]
[1767905715166,0.3089882,137.72,137.64,1.80473952]
[1767905715672,6.8504882,137.72,137.65,6.5448]
[1767905715856,0.3089882,137.71,137.65,6.5448]
[1767905716766,0.3089882,137.71,137.67,0.05386312]
[1767905717365,0.3089882,137.74,137.67,0.05386312]
[1767905718578,0.3089882,137.73,137.67,0.05386312]
[1767905719379,94.55362772,137.76,137.67,0.05386312]
[1767905719584,0.05551254,137.71,137.68,1.80473952]
[1767905719880,92.7488882,137.76,137.68,1.80473952]
[1767905720274,6.8479882,137.78,137.68,1.80473952]
[1767905720578,6.8479882,137.78,137.7,1.80473952]
[1767905721076,0.3089882,137.82,137.73,0.0469401]
[1767905721283,0.3089882,137.82,137.74,1.80473952]
[1767905721676,6.8458882,137.82,137.74,8.34513952]
[1767905721981,0.3089882,137.82,137.77,0.04849357]
[1767905723076,0.3089882,137.81,137.72,1.80473952]
[1767905723381,0.3089882,137.81,137.72,8.34603952]
[1767905723878,0.3089882,137.81,137.71,1.80473952]
[1767905724181,0.3089882,137.81,137.72,6.541]
[1767905724384,0.3089882,137.81,137.75,0.05142707]
[1767905726589,6.8463882,137.81,137.75,0.05142707]
[1767905728380,0.3089882,137.81,137.75,0.05142707]
[1767905729495,86.1889882,137.83,137.75,1.85616659]
[1767905729994,0.3089882,137.83,137.75,1.85616659]
[1767905730385,0.3089882,137.83,137.75,0.05142707]
[1767905730581,0.3089882,137.83,137.75,1.85616659]
[1767905731694,0.3089882,137.83,137.77,6.5388]
[1767905732281,0.3089882,137.83,137.75,8.34453952]